bitfinex/quotes_SOLUSD_20250429
["timestamp","ask_amount","ask_price","bid_price","bid_amount"]
[1745923358386,12.00596546,148.42,148.41,0.063]
[1745923359477,18.74360189,148.42,148.41,0.063]
[1745923361356,29.90783006,148.42,148.41,0.063]
[1745923361684,18.74360189,148.42,148.41,0.063]
[1745923362383,89.57509042,148.41,148.4,0.063]
[1745923362688,100.73931859,148.41,148.4,0.063]
[1745923367387,89.51325073,148.39,148.37,0.063]
[1745923367561,93.93822817,148.38,148.37,0.063]
[1745923370192,18.74541821,148.38,148.37,0.063]
[1745923370377,17.90368092,148.38,148.37,0.063]
[1745923371290,18.74541821,148.38,148.37,0.063]
[1745923373191,18.74541821,148.38,148.34,0.063]
[1745923373192,62.30399896,148.38,148.34,0.063]
[1745923373366,11.16422817,148.32,148.31,0.063]
[1745923373771,26.0,148.35,148.31,0.063]
[1745923374075,11.16422817,148.33,148.31,0.063]
[1745923374695,11.16422817,148.32,148.31,0.063]
[1745923375068,26.0,148.35,148.31,0.063]
[1745923375069,6.7410059,148.35,148.31,0.063]
[1745923375269,11.16422817,148.33,148.31,0.063]
[1745923375990,6.7410059,148.35,148.31,0.063]
[1745923376189,11.16422817,148.32,148.31,0.063]
[1745923376395,6.74081563,148.35,148.31,0.063]
[1745923376572,11.16422817,148.33,148.31,0.063]
[1745923377196,11.16422817,148.32,148.31,0.063]
[1745923379591,17.90640724,148.32,148.31,0.063]
[1745923380190,11.16422817,148.32,148.31,0.063]
[1745923380971,11.16422817,148.33,148.31,0.063]
[1745923382083,11.16422817,148.34,148.31,0.063]
[1745923382394,11.16422817,148.34,148.31,6.80563367]
[1745923382569,11.16422817,148.36,148.32,11.16422817]
[1745923382769,11.16422817,148.37,148.33,11.16422817]
[1745923383194,11.16422817,148.36,148.32,11.16422817]
[1745923383998,11.16422817,148.36,148.31,6.80563367]
[1745923384196,11.16422817,148.36,148.32,11.16422817]
[1745923384392,11.16422817,148.35,148.31,17.96986184]
[1745923384578,11.16422817,148.35,148.31,6.80563367]
[1745923384889,11.16422817,148.33,148.31,0.063]
[1745923386490,89.64102385,148.35,148.31,0.063]
[1745923386680,11.16422817,148.33,148.31,0.063]
[1745923388808,82.9,148.35,148.32,11.16422817]
[1745923389197,94.06422817,148.35,148.31,11.22722817]
[1745923389515,11.16422817,148.34,148.31,0.063]
[1745923390082,11.16422817,148.33,148.31,0.063]
[1745923390582,82.9,148.32,148.31,0.063]
[1745923391388,94.06422817,148.32,148.31,0.063]
[1745923391590,17.90640724,148.32,148.31,0.063]
[1745923391811,11.16422817,148.32,148.31,0.063]
[1745923392992,6.74192712,148.33,148.31,0.063]
[1745923393191,11.16422817,148.32,148.31,0.063]
[1745923394830,17.90640724,148.32,148.31,0.063]
[1745923395116,11.16422817,148.32,148.31,0.063]
[1745923398695,11.16422817,148.35,148.31,0.063]
[1745923398896,6.74040467,148.36,148.31,17.96986184]
[1745923399101,11.16422817,148.35,148.31,17.96986184]
[1745923399722,11.16422817,148.35,148.32,11.16422817]
[1745923399921,13.66,148.37,148.33,11.16422817]
[1745923400216,11.16422817,148.37,148.33,11.16422817]
[1745923400640,82.9,148.36,148.33,11.16422817]
[1745923401225,94.06422817,148.36,148.32,11.16422817]
[1745923401435,82.9,148.36,148.34,11.16422817]
[1745923401621,82.9,148.35,148.34,11.16422817]
[1745923401837,82.9,148.35,148.33,11.16422817]
[1745923402552,82.9,148.35,148.34,11.16422817]
[1745923403059,82.9,148.35,148.34,17.90549822]
[1745923404960,26.0,148.34,148.31,0.063]
[1745923405135,11.16422817,148.32,148.31,0.063]
[1745923407054,17.90640724,148.32,148.31,0.063]
[1745923410335,11.16422817,148.32,148.31,0.063]
[1745923410741,17.90640724,148.32,148.31,0.063]
[1745923415461,0.84173729,148.33,148.31,0.063]
[1745923415657,6.74032565,148.37,148.31,0.063]
[1745923415869,11.16422817,148.35,148.31,11.22722817]
[1745923416236,11.16422817,148.36,148.33,11.16422817]
[1745923416539,11.16422817,148.36,148.32,11.16422817]
[1745923417347,11.16422817,148.34,148.31,0.063]
[1745923417546,11.16422817,148.32,148.31,0.063]
[1745923418748,11.16422817,148.33,148.31,0.063]
[1745923418953,11.16422817,148.34,148.31,0.063]
[1745923420766,39.66,148.35,148.31,0.063]
[1745923421059,94.06422817,148.34,148.31,0.063]
[1745923421945,82.9,148.34,148.32,11.16422817]
[1745923422957,82.9,148.34,148.33,11.16422817]
[1745923423942,82.9,148.34,148.33,17.9059527]
[1745923429778,82.9,148.34,148.33,6.74172453]
[1745923431462,82.9,148.34,148.33,17.9059527]
[1745923432063,82.9,148.34,148.33,6.74172453]
[1745923437487,82.9,148.34,148.33,17.9059527]
[1745923440367,82.9,148.34,148.33,6.74172453]
[1745923443197,82.9,148.34,148.33,17.9059527]
[1745923448120,82.9,148.34,148.33,6.74172453]
[1745923448592,82.9,148.34,148.33,17.9059527]
[1745923450519,94.06422817,148.34,148.31,0.063]
[1745923450690,94.06422817,148.34,148.31,6.80544348]
[1745923452110,82.9,148.34,148.31,6.80544348]
[1745923452317,82.9,148.33,148.31,6.80544348]
[1745923452686,82.9,148.33,148.32,11.16422817]
[1745923453302,82.9,148.33,148.32,29.81387703]
[1745923454425,82.9,148.33,148.32,36.5560561]
[1745923456713,82.9,148.38,148.32,53.41150378]
[1745923457012,82.9,148.37,148.35,11.16422817]
[1745923457188,11.16422817,148.39,148.35,11.16422817]
[1745923457189,82.9,148.36,148.35,11.16422817]
[1745923458829,82.9,148.36,148.35,17.9050438]
[1745923459190,82.9,148.39,148.35,17.9050438]
[1745923459391,82.9,148.39,148.36,11.16422817]
[1745923459705,82.9,148.39,148.37,11.16422817]
[1745923459898,82.9,148.39,148.38,11.16422817]
[1745923460108,82.9,148.39,148.37,11.16422817]
[1745923460923,82.9,148.39,148.35,16.85203909]
[1745923461223,82.9,148.38,148.36,11.16422817]
[1745923462918,82.9,148.38,148.37,6.73990698]
[1745923463917,82.9,148.38,148.35,6.74081563]
[1745923464134,82.9,148.38,148.36,11.16422817]
[1745923464921,82.9,148.38,148.37,11.16422817]
[1745923466128,82.9,148.38,148.37,17.90413515]
[1745923466935,0.03,148.4,148.37,17.90413515]
[1745923467138,0.03,148.4,148.38,11.16422817]
[1745923468323,0.03,148.4,148.39,6.73899858]
[1745923468537,0.03,148.4,148.38,17.90348113]
[1745923468710,0.03,148.4,148.38,6.73925296]
[1745923472511,0.03,148.4,148.38,11.16422817]
[1745923473425,0.03,148.4,148.39,11.16422817]
[1745923474328,0.03,148.4,148.38,17.90328617]
[1745923475861,0.03,148.4,148.38,6.739058]
[1745923476058,0.03,148.4,148.38,17.90328617]
[1745923476232,0.03,148.4,148.36,6.74036128]
[1745923476430,0.03,148.4,148.38,11.16422817]
[1745923476927,82.9,148.39,148.33,24.80422817]
[1745923477232,82.9,148.38,148.35,11.16422817]
[1745923477430,82.9,148.38,148.37,11.16422817]
[1745923478230,82.9,148.38,148.36,6.74015001]
[1745923478439,82.9,148.38,148.37,11.16422817]
[1745923480863,82.9,148.38,148.36,17.90437818]
[1745923482965,82.9,148.38,148.35,6.74059333]
[1745923483168,82.9,148.38,148.36,11.16422817]
[1745923490545,82.9,148.38,148.35,11.16422817]
[1745923491646,82.9,148.38,148.36,11.16422817]
[1745923494379,82.9,148.38,148.37,11.16422817]
[1745923494672,82.9,148.38,148.36,11.16422817]
[1745923495863,82.9,148.38,148.36,17.90453474]
[1745923497477,82.9,148.38,148.36,7.16753068]
[1745923497968,82.9,148.38,148.35,13.90834631]
[1745923498360,82.9,148.38,148.33,13.64]
[1745923498551,7.16753068,148.36,148.33,13.64]
[1745923499256,7.16753068,148.36,148.32,13.90949927]
[1745923499578,7.16753068,148.34,148.31,0.063]
[1745923499773,82.9,148.33,148.31,0.063]
[1745923500078,82.9,148.33,148.32,25.81717954]
[1745923500573,82.9,148.39,148.33,18.64964886]
[1745923500775,82.9,148.38,148.36,7.16753068]
[1745923500975,82.9,148.37,148.35,7.16753068]
[1745923501579,82.9,148.37,148.35,11.20039027]
[1745923501761,82.9,148.37,148.35,17.9408499]
[1745923503884,82.9,148.37,148.35,6.74045963]
[1745923504252,82.9,148.37,148.34,17.94149449]
[1745923506179,82.9,148.37,148.34,6.74110422]
[1745923506382,82.9,148.37,148.34,17.94149449]
[1745923507897,82.9,148.37,148.35,11.20039027]
[1745923508103,82.9,148.37,148.34,6.74110422]
[1745923508388,82.9,148.37,148.34,17.94149449]
[1745923513495,82.9,148.37,148.35,11.20039027]
[1745923513787,82.9,148.37,148.35,17.94109915]
[1745923515261,82.9,148.37,148.33,32.28964886]
[1745923515262,82.9,148.37,148.34,6.74117389]
[1745923515459,94.10039027,148.37,148.33,24.84039027]
[1745923515661,82.9,148.36,148.33,24.84039027]
[1745923515974,94.10039027,148.35,148.31,6.80541537]
[1745923516191,94.10039027,148.35,148.31,18.00580564]
[1745923517608,94.10039027,148.35,148.32,11.20039027]
[1745923519594,94.10039027,148.35,148.31,6.80542813]
[1745923519793,82.9,148.34,148.31,18.0058184]
[1745923520090,82.9,148.33,148.31,18.0058184]
[1745923520795,82.9,148.33,148.31,6.80542813]
[1745923521001,82.9,148.33,148.31,18.0058184]
[1745923522189,82.9,148.33,148.31,6.80542813]
[1745923522489,82.9,148.33,148.31,11.26339027]
[1745923522689,82.9,148.33,148.31,0.063]
[1745923522897,82.9,148.33,148.31,11.26339027]
[1745923524089,82.9,148.33,148.31,18.00599929]
[1745923524996,82.9,148.33,148.31,6.80560902]
[1745923526375,94.10039027,148.32,148.31,0.063]
[1745923527501,11.20039027,148.32,148.31,0.063]
[1745923527700,12.04212756,148.32,148.31,0.063]
[1745923528902,17.94256934,148.32,148.31,0.063]
[1745923529505,18.78430663,148.32,148.31,0.063]
[1745923530180,44.78430663,148.32,148.31,0.063]
[1745923534887,37.20039027,148.32,148.31,0.063]
[1745923535592,26.0,148.32,148.31,0.063]
[1745923536114,37.20039027,148.32,148.31,0.063]
[1745923536285,43.94256934,148.32,148.31,0.063]
[1745923538698,44.78430663,148.32,148.31,0.063]
[1745923542014,18.78430663,148.32,148.31,0.063]
[1745923542617,82.711,148.27,148.26,0.063]
[1745923542816,11.20039027,148.27,148.26,0.063]
[1745923545896,26.0,148.28,148.26,0.063]
[1745923546097,6.74263367,148.31,148.26,11.26339027]
[1745923546417,11.20039027,148.29,148.26,0.063]
[1745923546807,37.20039027,148.3,148.26,11.26339027]
[1745923548523,43.94349695,148.3,148.26,11.26339027]
[1745923548904,43.94349695,148.3,148.26,0.063]
[1745923549112,11.20039027,148.29,148.26,0.063]
[1745923549426,11.20039027,148.29,148.26,6.80790433]
[1745923549604,11.20039027,148.29,148.26,0.063]
[1745923550728,43.94349695,148.3,148.26,11.26339027]
[1745923551018,37.20039027,148.3,148.26,11.26339027]
[1745923551228,43.94358519,148.3,148.26,11.26339027]
[1745923551613,11.20039027,148.29,148.26,0.063]
[1745923553716,43.94360835,148.3,148.26,11.26339027]
[1745923555331,43.94360835,148.3,148.26,0.063]
[1745923555631,43.94360835,148.3,148.26,11.26339027]
[1745923556131,43.94360835,148.3,148.26,18.00820042]
[1745923557343,43.94360835,148.3,148.26,0.063]
[1745923557847,82.9,148.29,148.26,11.26339027]
[1745923558940,94.10039027,148.29,148.26,0.063]
[1745923560139,11.20039027,148.28,148.26,0.063]
[1745923561218,89.64356955,148.29,148.26,0.063]
[1745923561419,100.84395982,148.29,148.26,0.063]
[1745923562239,94.10039027,148.29,148.26,0.063]
[1745923562643,100.84404375,148.29,148.26,0.063]
[1745923563816,94.10039027,148.28,148.26,0.063]
[1745923564242,100.84439816,148.28,148.26,0.063]
[1745923567639,96.82302268,148.28,148.26,0.063]
[1745923571350,7.17901479,148.27,148.26,0.063]
[1745923573354,13.92346747,148.27,148.26,0.063]
[1745923575527,7.17901479,148.27,148.26,0.063]
[1745923575840,7.17901479,148.28,148.26,0.063]
[1745923576368,6.74364294,148.29,148.26,0.063]
[1745923576369,7.17901479,148.29,148.26,0.063]
[1745923577456,7.17901479,148.29,148.26,6.80790759]
[1745923577644,11.21583182,148.29,148.26,6.80790759]
[1745923578151,11.21583182,148.28,148.26,6.80790759]
[1745923579666,11.21583182,148.28,148.26,0.063]
[1745923582372,11.21583182,148.27,148.26,0.063]
[1745923583968,17.9602845,148.27,148.26,0.063]
[1745923590476,55.17611632,148.27,148.26,0.063]
[1745923590778,43.9602845,148.27,148.26,0.063]
[1745923596080,82.774,148.25,148.21,6.74715344]
[1745923596281,82.774,148.24,148.21,6.74715344]
[1745923596867,82.774,148.24,148.22,11.21583182]
[1745923597075,82.774,148.24,148.23,11.21583182]
[1745923597662,82.774,148.24,148.23,7.1802163]
[1745923598170,82.774,148.24,148.22,13.92668183]
[1745923599763,82.774,148.24,148.22,6.74646553]
[1745923600465,82.774,148.24,148.21,13.92721062]
[1745923601484,82.774,148.23,148.2,0.063]
[1745923601687,82.774,148.23,148.2,7.2432163]
[1745923602072,82.774,148.23,148.2,13.99069215]
[1745923602987,82.774,148.23,148.2,6.81047585]
[1745923603171,82.774,148.23,148.2,13.99069215]
[1745923603794,89.9542163,148.23,148.2,6.81047585]
[1745923604792,82.774,148.22,148.2,6.81047585]
[1745923605090,89.9542163,148.21,148.2,0.063]
[1745923605269,8.02195359,148.21,148.2,0.063]
[1745923605475,11.2281417,148.21,148.2,0.063]
[1745923606682,11.2281417,148.22,148.2,0.063]
[1745923606893,11.2281417,148.24,148.2,11.2911417]
[1745923607275,11.2281417,148.21,148.2,0.063]
[1745923608393,17.97532475,148.21,148.2,0.063]
[1745923613589,82.837,148.19,148.17,0.9453635]
[1745923613792,94.0651417,148.18,148.17,0.9453635]
[1745923614403,82.837,148.18,148.17,0.9453635]
[1745923619489,11.2281417,148.2,148.17,0.9453635]
[1745923620531,26.84173729,148.22,148.17,18.92241996]
[1745923620697,26.84173729,148.22,148.18,11.2281417]
[1745923620698,37.2281417,148.22,148.18,11.2281417]
[1745923621917,37.2281417,148.22,148.19,6.74809366]
[1745923623227,26.0,148.22,148.19,6.74809366]
[1745923623405,37.2281417,148.22,148.19,6.74809366]
[1745923625406,82.9,148.21,148.19,17.97623536]
[1745923625611,82.9,148.21,148.2,11.2281417]
[1745923626402,82.9,148.21,148.19,17.97623536]
[1745923627207,82.9,148.21,148.2,11.2281417]
[1745923628815,82.9,148.21,148.2,17.97578002]
[1745923629525,82.9,148.21,148.18,25.39819792]
[1745923629723,82.9,148.21,148.19,11.2281417]
[1745923630438,82.9,148.21,148.2,11.2281417]
[1745923630804,82.9,148.21,148.2,17.97578002]
[1745923631845,82.9,148.21,148.2,36.62542888]
[1745923632645,82.9,148.25,148.21,18.64964886]
[1745923632941,82.9,148.24,148.22,6.74672783]
[1745923634150,82.9,148.29,148.23,17.97441438]
[1745923634328,82.9,148.28,148.26,11.2281417]
[1745923634531,82.9,148.27,148.25,11.2281417]
[1745923634720,82.9,148.27,148.24,11.2281417]
[1745923634921,82.9,148.27,148.23,6.74627268]
[1745923635149,11.2281417,148.26,148.22,18.64964886]
[1745923635358,11.2281417,148.26,148.22,29.87779056]
[1745923635852,11.2281417,148.26,148.22,18.64964886]
[1745923636156,11.2281417,148.25,148.21,36.62497361]
[1745923636522,11.2281417,148.26,148.22,11.2281417]
[1745923637416,82.9,148.25,148.22,11.2281417]
[1745923637613,94.1281417,148.24,148.2,21.92351324]
[1745923637845,82.9,148.23,148.2,20.38751324]
[1745923638018,82.9,148.23,148.2,31.61565494]
[1745923639142,94.1281417,148.22,148.18,18.64964886]
[1745923639441,94.1281417,148.22,148.18,17.97651901]
[1745923642549,11.2281417,148.2,148.17,0.9453635]
[1745923642851,82.9,148.19,148.17,0.9453635]
[1745923643832,82.9,148.18,148.17,0.9453635]
[1745923645631,6.5129,148.17,148.11,0.063]
[1745923645831,11.2281417,148.14,148.11,0.063]
[1745923646045,82.9,148.14,148.11,0.063]
[1745923646236,82.9,148.14,148.11,11.2911417]
[1745923649655,89.65047404,148.14,148.11,11.2911417]
[1745923650273,82.9,148.14,148.12,11.2281417]
[1745923652644,89.65041919,148.14,148.11,0.063]
[1745923652835,89.65041919,148.14,148.11,11.2911417]
[1745923654469,100.87856089,148.14,148.11,0.063]
[1745923656641,90.49215648,148.14,148.11,0.063]
[1745923656845,94.1281417,148.13,148.11,0.063]
[1745923657452,7.59215648,148.14,148.05,6.7544648]
[1745923657453,82.837,148.1,148.05,6.7544648]
[1745923657654,94.0651417,148.09,148.05,17.9826065]
[1745923658765,82.837,148.09,148.08,11.2281417]
[1745923658967,43.97949553,148.12,148.08,11.2281417]
[1745923659164,43.97942595,148.12,148.08,11.2281417]
[1745923659669,37.2281417,148.12,148.08,11.2281417]
[1745923660166,43.97946725,148.12,148.08,11.2281417]
[1745923660351,37.2281417,148.12,148.08,11.2281417]
[1745923660656,37.2281417,148.12,148.09,6.75265041]
[1745923660857,26.0,148.12,148.09,17.98079211]
[1745923661453,11.2281417,148.15,148.11,11.2281417]
[1745923661765,12.06987899,148.17,148.13,11.2281417]
[1745923661955,11.2281417,148.17,148.13,11.2281417]
[1745923662154,11.2281417,148.16,148.12,11.2281417]
[1745923662563,11.2281417,148.16,148.1,18.64964886]
[1745923662564,11.2281417,148.17,148.13,17.97896867]
[1745923662769,0.84173729,148.19,148.14,11.2281417]
[1745923663064,0.84173729,148.19,148.15,11.2281417]
[1745923663065,82.9,148.18,148.15,11.2281417]
[1745923664159,82.9,148.17,148.15,11.2281417]
[1745923664551,82.9,148.17,148.15,17.97782718]
[1745923664867,82.9,148.17,148.15,11.2281417]
[1745923665066,82.9,148.17,148.14,17.97831695]
[1745923665475,82.9,148.17,148.14,11.2281417]
[1745923665979,82.9,148.17,148.13,17.97883243]
[1745923666971,89.649039,148.17,148.13,11.2281417]
[1745923667163,94.1281417,148.16,148.12,11.2281417]
[1745923667354,94.1281417,148.15,148.11,11.2281417]
[1745923667557,11.2281417,148.14,148.1,11.2281417]
[1745923670475,17.97864327,148.14,148.1,11.2281417]
[1745923670775,11.2281417,148.13,148.09,20.39246729]
[1745923671074,82.9,148.12,148.09,31.62060899]
[1745923671262,82.9,148.12,148.1,11.2281417]
[1745923672259,82.9,148.12,148.09,31.62060899]
[1745923672579,82.9,148.11,148.09,13.64]
[1745923672758,82.9,148.11,148.08,17.98117108]
[1745923673073,82.9,148.1,148.08,17.98117108]
[1745923673284,82.9,148.09,148.08,17.98117108]
[1745923673776,82.9,148.09,148.08,11.2281417]
[1745923673994,82.9,148.09,148.07,11.2281417]
[1745923675878,82.9,148.09,148.06,6.75357347]
[1745923676057,82.9,148.09,148.07,11.2281417]
[1745923678073,82.9,148.08,148.07,17.98156127]
[1745923678778,82.9,148.08,148.07,36.63121013]
[1745923679079,82.9,148.08,148.07,17.98156127]
[1745923681493,82.9,148.08,148.07,6.75341957]
[1745923682481,82.9,148.08,148.07,17.98156127]
[1745923683978,82.9,148.1,148.07,23.63732583]
[1745923684176,82.9,148.1,148.09,6.75265041]
[1745923684483,82.9,148.1,148.09,17.98079211]
[1745923686089,82.9,148.1,148.08,6.75288873]
[1745923687268,94.1281417,148.1,148.07,6.75347562]
[1745923688592,82.9,148.1,148.07,17.98161732]
[1745923688796,82.9,148.1,148.08,11.2281417]
[1745923689591,82.9,148.1,148.08,17.98095497]
[1745923689793,82.9,148.09,148.08,17.98095497]
[1745923690992,82.9,148.09,148.08,6.75281327]
[1745923692192,82.9,148.09,148.05,16.94906427]
[1745923692387,82.9,148.09,148.06,29.87779056]
[1745923692595,82.9,148.09,148.07,11.2281417]
[1745923693190,82.9,148.09,148.05,6.81747483]
[1745923693378,82.9,148.09,148.06,11.2281417]
[1745923693571,82.9,148.09,148.07,11.2281417]
[1745923694497,82.9,148.09,148.05,0.063]
[1745923694498,12.06987899,148.08,148.05,0.063]
[1745923694703,11.2281417,148.06,148.05,0.063]
[1745923695507,18.00537137,148.06,148.05,0.063]
[1745923696377,24.75939001,148.06,148.05,0.063]
[1745923697198,24.75939001,148.06,148.05,1e-08]
[1745923697199,29.72237323,148.06,148.05,1e-08]
[1745923697892,73.7277446,148.06,148.05,1e-08]
[1745923698094,74.56948189,148.06,148.05,1e-08]
[1745923698301,45.62747137,148.02,148.0,0.5]
[1745923698485,52.38331517,148.02,148.0,0.5]
[1745923698888,57.34629839,148.02,148.0,0.5]
[1745923700077,57.34629839,148.02,148.01,1e-08]
[1745923700799,52.38331517,148.02,148.01,1e-08]
[1745923701291,71.03296403,148.02,148.01,1e-08]
[1745923701620,75.97755126,148.02,148.01,1e-08]
[1745923702024,82.39999999,147.98,147.95,0.0411]
[1745923702199,100.40537136,147.97,147.95,0.0411]
[1745923702593,107.16392321,147.97,147.95,0.0411]
[1745923703110,18.00537137,147.96,147.95,0.0411]
[1745923704006,25.60566051,147.97,147.95,0.0411]
[1745923704802,18.84710866,147.97,147.95,0.0411]
[1745923705896,25.60527828,147.97,147.95,0.0411]
[1745923706421,18.00537137,147.96,147.95,0.0411]
[1745923708417,7.60003708,147.97,147.95,0.0411]
[1745923708617,18.00537137,147.96,147.95,0.0411]
[1745923710026,24.76395477,147.96,147.95,0.0411]
[1745923710328,8.3385834,147.96,147.95,0.0411]
[1745923710504,26.34395477,147.96,147.95,0.0411]
[1745923712934,18.00537137,147.96,147.95,0.0411]
[1745923720226,11.26630405,147.97,147.95,0.0411]
[1745923720612,12.10804134,147.98,147.95,0.0411]
[1745923721840,18.86572834,147.98,147.95,0.0411]
[1745923722142,11.26630405,147.97,147.95,0.0411]
[1745923723124,18.02459334,147.97,147.95,0.0411]
[1745923723554,6.75828929,147.97,147.95,0.0411]
[1745923723730,18.02459334,147.97,147.95,0.0411]
[1745923724540,38.4812902,147.96,147.86,6.76273745]
[1745923724745,11.26630405,147.89,147.85,11.26630405]
[1745923725042,11.26630405,147.89,147.82,6.0357]
[1745923725346,11.26630405,147.89,147.85,11.26630405]
[1745923726253,12.10804134,147.88,147.84,11.26630405]
[1745923726455,18.87028099,147.88,147.84,11.26630405]
[1745923726748,18.0285437,147.88,147.84,11.26630405]
[1745923727044,18.0285437,147.88,147.82,12.80050694]
[1745923727249,18.0285437,147.88,147.83,11.26630405]
[1745923727749,18.0285437,147.88,147.82,11.26630405]
[1745923727951,18.0285437,147.88,147.87,1e-08]
[1745923729116,82.9,147.87,147.81,0.1816018]
[1745923729322,11.26630405,147.83,147.81,0.1816018]
[1745923729543,94.16630405,147.82,147.81,0.1816018]
[1745923729920,11.26630405,147.82,147.81,0.1816018]
[1745923730554,18.87302578,147.82,147.81,0.1816018]
[1745923731561,25.670328,147.82,147.81,0.1816018]
[1745923731724,13.66,147.83,147.81,0.1816018]
[1745923731938,18.06360627,147.82,147.81,0.1816018]
[1745923732254,18.90534356,147.82,147.81,0.1816018]
[1745923732632,25.670328,147.82,147.81,0.1816018]
[1745923733253,18.06360627,147.82,147.81,0.1816018]
[1745923733949,20.42490446,147.83,147.81,0.1816018]
[1745923734172,18.06360627,147.82,147.81,0.1816018]
[1745923735057,31.72360627,147.83,147.81,0.1816018]
[1745923735262,13.66,147.83,147.81,0.1816018]
[1745923735630,31.72360627,147.83,147.81,0.1816018]
[1745923735856,13.66,147.83,147.81,0.1816018]
[1745923736824,44.06360627,147.84,147.81,0.1816018]
[1745923737069,18.06360627,147.83,147.81,0.1816018]
[1745923738157,26.84173729,147.84,147.81,0.1816018]
[1745923738370,44.90534356,147.84,147.81,0.1816018]
[1745923738567,6.76376223,147.85,147.81,18.24520807]
[1745923738568,18.06360627,147.85,147.81,18.24520807]
[1745923738747,82.9,147.83,147.81,25.0106498]
[1745923739272,82.9,147.82,147.81,25.0106498]
[1745923740851,20.42182381,147.89,147.81,25.0106498]
[1745923740852,82.9,147.86,147.81,41.9242551]
[1745923741172,82.9,147.85,147.81,23.86064883]
[1745923741342,82.9,147.88,147.82,18.64964886]
[1745923741665,82.9,147.88,147.83,6.4029]
[1745923742169,82.9,147.88,147.84,18.06360627]
[1745923742347,82.9,147.87,147.86,18.06360627]
[1745923742543,82.9,147.87,147.83,6.4029]
[1745923742771,82.9,147.87,147.85,18.06360627]
[1745923744362,82.9,147.87,147.86,18.06360627]
[1745923745446,82.9,147.87,147.86,24.8267606]
[1745923747575,82.9,147.87,147.86,18.06360627]
[1745923747751,82.9,147.87,147.86,24.8267606]
[1745923747946,82.9,147.87,147.86,18.06360627]
[1745923748958,82.9,147.87,147.86,24.8267606]
[1745923749158,82.9,147.87,147.84,6.76406926]
[1745923749370,82.9,147.87,147.86,18.06360627]
[1745923750575,82.9,147.87,147.84,20.62406926]
[1745923750750,82.9,147.87,147.85,18.06360627]
[1745923751092,82.9,147.87,147.86,18.06360627]
[1745923751580,18.06360627,147.89,147.84,6.76386908]
[1745923751774,18.06360627,147.89,147.85,18.06360627]
[1745923752266,18.06360627,147.87,147.82,6.76498444]
[1745923752481,18.06360627,147.87,147.83,18.06360627]
[1745923752686,83.74173729,147.88,147.82,6.76498444]
[1745923752986,18.06360627,147.87,147.82,6.76498444]
[1745923753283,18.06360627,147.87,147.83,18.06360627]
[1745923754382,127.80534356,147.88,147.84,18.06360627]
[1745923754689,127.80534356,147.88,147.85,18.06360627]
[1745923754690,109.74173729,147.88,147.85,18.06360627]
[1745923754990,82.9,147.88,147.87,18.06360627]
[1745923755294,82.9,147.88,147.82,23.67744554]
[1745923755295,44.06360627,147.9,147.86,18.06360627]
[1745923755455,18.06360627,147.9,147.86,24.8267117]
[1745923755774,26.0,147.91,147.87,18.06360627]
[1745923755973,18.90534356,147.92,147.87,18.06360627]
[1745923756178,18.06360627,147.9,147.86,24.8267117]
[1745923757072,24.8249814,147.9,147.86,18.06360627]
[1745923757279,18.06360627,147.89,147.85,18.06360627]
[1745923757456,18.06360627,147.89,147.82,23.67744554]
[1745923757663,25.66671869,147.9,147.85,18.06360627]
[1745923757977,7.60311242,147.9,147.85,18.06360627]
[1745923758168,0.84173729,147.91,147.87,18.06360627]
[1745923758368,18.90534356,147.92,147.88,18.06360627]
[1745923758689,18.06360627,147.91,147.87,18.06360627]
[1745923758861,18.06360627,147.9,147.86,18.06360627]
[1745923759061,23.00654958,147.91,147.87,18.06360627]
[1745923759567,24.82450133,147.91,147.87,18.06360627]
[1745923759755,18.06360627,147.9,147.86,18.06360627]
[1745923760179,18.90534356,147.92,147.88,18.06360627]
[1745923760589,31.92360627,147.93,147.89,18.06360627]
[1745923761089,38.68364866,147.93,147.89,18.06360627]